fUST/lending_fUST_20241025
["ID","MTS","AMOUNT","RATE_DAILY","PERIOD"]
[340791227,1729828248359,-693.705385,0.00013813,2]
[340791228,1729828248369,-693.705385,0.00013813,2]
[340791229,1729828248379,-151.0,0.00013813,2]
[340791230,1729828248389,-158.462762,0.00013813,2]
[340791231,1729828248399,-158.462762,0.00013813,2]
[340791232,1729828248409,-19625.76675414,0.00013813,2]
[340791233,1729828248421,-310.4698741,0.00013822,2]
[340791234,1729828248432,-289.335617,0.00013822,2]
[340791235,1729828248442,-151.0,0.00013822,2]
[340791236,1729828248454,-151.0,0.00013822,2]
[340791237,1729828248464,-151.0,0.00013822,2]
[340791238,1729828248474,-231.370726,0.00013822,2]
[340791239,1729828248486,-231.370726,0.00013822,2]
[340791240,1729828248497,-151.0,0.00013822,2]
[340791241,1729828248507,-151.0,0.00013822,2]
[340791242,1729828248518,-151.0,0.00013822,2]
[340791243,1729828248527,-151.0,0.00013822,2]
[340791244,1729828248538,-459.707949,0.00013822,2]
[340791245,1729828248550,-198.906741,0.00013822,2]
[340791246,1729828248561,-198.906741,0.00013822,2]
[340791247,1729828248572,-34490.53342068,0.00013822,2]
[340791248,1729828249090,-500.0,0.00013673,2]
[340791249,1729828249101,-546.920747,0.00013698,2]
[340791250,1729828249110,-546.920747,0.00013698,2]
[340791251,1729828249121,-546.920747,0.00013698,2]
[340791252,1729828249131,-546.920747,0.00013698,2]
[340791253,1729828249141,-546.920747,0.00013698,2]
[340791254,1729828249151,-151.0,0.00013698,2]
[340791255,1729828249161,-151.0,0.00013698,2]
[340791256,1729828249171,-546.920747,0.00013793,2]
[340791257,1729828249181,-48380.475518,0.00013822,2]
[340791258,1729828279961,154.0,0.000198,60]
[340791259,1729828558532,26100.0,0.0001,2]
[340791260,1729828558560,5381.53948,0.0001,2]
[340791265,1729829317090,154.0,0.000198,60]
[340791304,1729829431774,-300.0,0.00012471,2]
[340791306,1729829431785,-300.0,0.00012471,2]
[340791308,1729829431794,-446.84811361,0.00012472,2]
[340791310,1729829431806,-322.567317,0.00012472,2]
[340791313,1729829431830,-929.32631788,0.00012472,2]
[340791317,1729829431841,-1375.92,0.00012472,2]
[340791320,1729829431853,-21825.33825151,0.00012472,2]
[340791323,1729829431863,-163.69258,0.00012519,2]
[340791325,1729829431872,-163.69258,0.00013172,2]
[340791327,1729829431882,-417.19156634,0.00013573,2]
[340791329,1729829431891,-6607.91094607,0.00013573,2]
[340791331,1729829431900,-185.82895705,0.00013584,2]
[340791333,1729829431909,-2943.6090009,0.0001361,2]
[340791335,1729829431919,-19115.0957267,0.00013668,2]
[340791337,1729829431928,-10997.9414046,0.00013668,2]
[340791339,1729829431938,-500.0,0.00013673,2]
[340791341,1729829431947,-263.94583625,0.00013673,2]
[340791403,1729829438011,-505.65327106,0.00013673,2]
[340791404,1729829438022,-6170.43683938,0.00013678,2]
[340791405,1729829438145,-9990.0,0.00013678,2]
[340791428,1729829439917,-500.0,0.00013673,2]
[340791429,1729829439927,-60299.94606752,0.00013678,2]
[340791430,1729829439937,-43991.7656185,0.00013678,2]
[340791431,1729829439947,-420.0,0.00013684,2]
[340791432,1729829439957,-5000.0,0.00013688,2]
[340791433,1729829439966,-215.874,0.00013688,2]
[340791434,1729829439976,-133805.670087,0.00013688,2]
[340791435,1729829439986,-87983.531237,0.00013688,2]
[340791436,1729829439996,-155.62836295,0.00013698,2]
[340791437,1729829440005,-500.0,0.00013698,2]
[340791438,1729829440015,-160.18081533,0.00013698,2]
[340791439,1729829440025,-500.0,0.00013698,2]
[340791440,1729829440034,-500.0,0.00013698,2]
[340791441,1729829440044,-165.48760707,0.00013698,2]
[340791442,1729829440054,-464.64520313,0.00013698,2]
[340791443,1729829440064,-500.0,0.00013698,2]
[340791444,1729829440074,-500.0,0.00013698,2]
[340791445,1729829440084,-500.0,0.00013698,2]
[340791446,1729829440094,-500.0,0.00013698,2]
[340791447,1729829440109,-500.0,0.00013698,2]
[340791448,1729829440119,-500.0,0.00013698,2]
[340791449,1729829440129,-500.0,0.00013698,2]
[340791450,1729829440138,-500.0,0.00013698,2]
[340791451,1729829440148,-500.0,0.00013698,2]
[340791452,1729829440158,-500.0,0.00013698,2]
[340791453,1729829440167,-500.0,0.00013698,2]
[340791454,1729829440178,-500.0,0.00013698,2]
[340791455,1729829440188,-294.58053913,0.00013698,2]
[340791456,1729829440197,-500.0,0.00013698,2]
[340791457,1729829440207,-500.0,0.00013698,2]
[340791458,1729829440216,-500.0,0.00013698,2]
[340791459,1729829440226,-500.0,0.00013698,2]
[340791460,1729829440237,-284.65454611,0.00013698,2]
[340791461,1729829440249,-500.0,0.00013698,2]
[340791462,1729829440259,-500.0,0.00013698,2]
[340791463,1729829440270,-500.0,0.00013698,2]
[340791464,1729829440280,-500.0,0.00013698,2]
[340791465,1729829440293,-500.0,0.00013698,2]
[340791466,1729829440305,-500.0,0.00013698,2]
[340791467,1729829440316,-500.0,0.00013698,2]
[340791468,1729829440327,-500.0,0.00013698,2]
[340791469,1729829440338,-500.0,0.00013698,2]
[340791470,1729829440348,-366.71665032,0.00013698,2]
[340791471,1729829440359,-500.0,0.00013698,2]
[340791472,1729829440369,-500.0,0.00013698,2]
[340791473,1729829440379,-500.0,0.00013698,2]
[340791474,1729829440388,-500.0,0.00013698,2]
[340791475,1729829440398,-500.0,0.00013698,2]
[340791476,1729829440407,-500.0,0.00013698,2]
[340791477,1729829440417,-500.0,0.00013698,2]
[340791478,1729829440426,-500.0,0.00013698,2]
[340791479,1729829440435,-500.0,0.00013698,2]
[340791480,1729829440445,-500.0,0.00013698,2]
[340791481,1729829440455,-500.0,0.00013698,2]
[340791482,1729829440464,-500.0,0.00013698,2]
[340791483,1729829440474,-500.0,0.00013698,2]
[340791484,1729829440483,-500.0,0.00013698,2]
[340791485,1729829440492,-500.0,0.00013698,2]
[340791486,1729829440502,-500.0,0.00013698,2]
[340791487,1729829440511,-500.0,0.00013698,2]
[340791488,1729829440521,-500.0,0.00013698,2]
[340791489,1729829440531,-500.0,0.00013698,2]
[340791490,1729829440541,-500.0,0.00013698,2]
[340791491,1729829440550,-500.0,0.00013698,2]
[340791492,1729829440559,-500.0,0.00013698,2]
[340791493,1729829440569,-500.0,0.00013698,2]
[340791494,1729829440579,-500.0,0.00013698,2]
[340791495,1729829440590,-500.0,0.00013698,2]
[340791496,1729829440600,-500.0,0.00013698,2]
[340791497,1729829440610,-500.0,0.00013698,2]
[340791498,1729829440619,-500.0,0.00013698,2]
[340791499,1729829440629,-500.0,0.00013698,2]
[340791500,1729829440638,-500.0,0.00013698,2]
[340791501,1729829440648,-500.0,0.00013698,2]
[340791502,1729829440658,-500.0,0.00013698,2]
[340791503,1729829440667,-500.0,0.00013698,2]
[340791504,1729829440678,-500.0,0.00013698,2]
[340791505,1729829440688,-500.0,0.00013698,2]
[340791506,1729829440698,-500.0,0.00013698,2]
[340791507,1729829440707,-500.0,0.00013698,2]
[340791508,1729829440718,-500.0,0.00013698,2]
[340791509,1729829440727,-500.0,0.00013698,2]
[340791510,1729829440737,-500.0,0.00013698,2]
[340791511,1729829440747,-500.0,0.00013698,2]
[340791512,1729829440757,-500.0,0.00013698,2]
[340791513,1729829440767,-500.0,0.00013698,2]
[340791514,1729829440776,-500.0,0.00013698,2]
[340791515,1729829440786,-500.0,0.00013698,2]
[340791516,1729829440797,-500.0,0.00013698,2]
[340791517,1729829440806,-500.0,0.00013698,2]
[340791518,1729829440816,-429.88460752,0.00013698,2]
[340791519,1729829440828,-500.0,0.00013698,2]
[340791520,1729829440839,-500.0,0.00013698,2]
[340791521,1729829440850,-600.0,0.00013698,2]
[340791522,1729829440860,-1219.82,0.00013698,2]
[340791523,1729829440871,-642.44,0.00013698,2]
[340791524,1729829440881,-830.7,0.00013698,2]
[340791525,1729829440892,-250.0,0.00013698,2]
[340791526,1729829440903,-500.0,0.00013698,2]
[340791527,1729829440915,-500.0,0.00013698,2]
[340791528,1729829440925,-500.0,0.00013698,2]
[340791529,1729829440936,-829.41,0.00013698,2]
[340791530,1729829440947,-500.0,0.00013698,2]
[340791531,1729829440957,-500.0,0.00013698,2]
[340791532,1729829440967,-500.0,0.00013698,2]
[340791533,1729829440977,-300.0,0.00013698,2]
[340791534,1729829440987,-500.0,0.00013698,2]
[340791535,1729829440996,-500.0,0.00013698,2]
[340791536,1729829441006,-500.0,0.00013698,2]
[340791537,1729829441016,-500.0,0.00013698,2]
[340791538,1729829441027,-541.43426891,0.00013698,2]
[340791539,1729829441038,-321.31822443,0.00013698,2]
[340791540,1729829441048,-500.0,0.00013698,2]
[340791541,1729829441059,-416.47036804,0.00013698,2]
[340791542,1729829441069,-159.32120652,0.00013698,2]
[340791543,1729829441079,-500.0,0.00013698,2]
[340791544,1729829441093,-500.0,0.00013698,2]
[340791545,1729829441104,-500.0,0.00013698,2]
[340791546,1729829441115,-500.0,0.00013698,2]
[340791547,1729829441124,-722.53,0.00013698,2]
[340791548,1729829441133,-815.79,0.00013698,2]
[340791549,1729829441143,-702.91,0.00013698,2]
[340791550,1729829441156,-528.0,0.00013698,2]
[340791551,1729829441166,-221.10657769,0.00013698,2]
[340791552,1729829441176,-1370.84,0.00013698,2]
[340791553,1729829441189,-684.18,0.00013698,2]
[340791554,1729829441200,-500.0,0.00013698,2]
[340791555,1729829441210,-178.23660235,0.00013698,2]
[340791556,1729829441219,-500.0,0.00013698,2]
[340791557,1729829441229,-500.0,0.00013698,2]
[340791558,1729829441238,-500.0,0.00013698,2]
[340791559,1729829441249,-500.0,0.00013698,2]
[340791560,1729829441259,-598.41,0.00013698,2]
[340791561,1729829441269,-500.0,0.00013698,2]
[340791562,1729829441278,-500.0,0.00013698,2]
[340791563,1729829441288,-681.32,0.00013698,2]
[340791564,1729829441300,-529.55,0.00013698,2]
[340791565,1729829441311,-500.0,0.00013698,2]
[340791566,1729829441320,-500.0,0.00013698,2]
[340791567,1729829441332,-500.0,0.00013698,2]
[340791568,1729829441344,-462.73902491,0.00013698,2]
[340791569,1729829441353,-193.44270171,0.00013698,2]
[340791570,1729829441363,-500.0,0.00013698,2]
[340791571,1729829441372,-500.0,0.00013698,2]
[340791572,1729829441382,-500.0,0.00013698,2]
[340791573,1729829441394,-500.0,0.00013698,2]
[340791574,1729829441405,-500.0,0.00013698,2]
[340791575,1729829441415,-500.0,0.00013698,2]
[340791576,1729829441427,-165.6519427,0.00013698,2]
[340791577,1729829441438,-500.0,0.00013698,2]
[340791578,1729829441447,-646.11,0.00013698,2]
[340791579,1729829441457,-500.0,0.00013698,2]
[340791580,1729829441467,-500.0,0.00013698,2]
[340791581,1729829441477,-195.19488849,0.00013698,2]
[340791582,1729829441487,-1886.94,0.00013698,2]
[340791583,1729829441496,-500.0,0.00013698,2]
[340791584,1729829441506,-507.79913886,0.00013698,2]
[340791585,1729829441517,-946.36,0.00013698,2]
[340791586,1729829441528,-500.0,0.00013698,2]
[340791587,1729829441537,-500.0,0.00013698,2]
[340791588,1729829441547,-515.12,0.00013698,2]
[340791589,1729829441559,-500.0,0.00013698,2]
[340791590,1729829441569,-500.0,0.00013698,2]
[340791591,1729829441579,-652.12,0.00013698,2]
[340791592,1729829441591,-500.0,0.00013698,2]
[340791593,1729829441600,-500.0,0.00013698,2]
[340791594,1729829441610,-500.0,0.00013698,2]
[340791595,1729829441620,-500.0,0.00013698,2]
[340791596,1729829441630,-500.0,0.00013698,2]
[340791597,1729829441640,-699.13,0.00013698,2]
[340791598,1729829441650,-500.0,0.00013698,2]
[340791599,1729829441660,-500.0,0.00013698,2]
[340791600,1729829441670,-500.0,0.00013698,2]
[340791601,1729829441682,-500.0,0.00013698,2]
[340791602,1729829441694,-151.0,0.00013698,2]
[340791603,1729829441706,-1147.43,0.00013698,2]
[340791604,1729829441916,-1419.72,0.00013698,2]
[340791605,1729829441929,-2058.89,0.00013698,2]
[340791606,1729829441939,-1058.16,0.00013698,2]
[340791607,1729829441950,-500.0,0.00013698,2]
[340791608,1729829441960,-517.24,0.00013698,2]
[340791609,1729829441969,-1358.14,0.00013698,2]
[340791610,1729829441978,-787.26,0.00013698,2]
[340791611,1729829441988,-774.66,0.00013698,2]
[340791612,1729829441998,-1194.06,0.00013698,2]
[340791613,1729829442007,-158.743479,0.00013698,2]
[340791614,1729829442016,-691.81,0.00013698,2]
[340791615,1729829442026,-158.743479,0.00013698,2]
[340791616,1729829442035,-500.0,0.00013698,2]
[340791617,1729829442044,-1024.99,0.00013698,2]
[340791618,1729829442054,-151.0,0.00013698,2]
[340791619,1729829442063,-152.117206,0.00013698,2]
[340791620,1729829442074,-151.0,0.00013698,2]
[340791621,1729829442084,-500.0,0.00013698,2]
[340791622,1729829442093,-158.046537,0.00013698,2]
[340791623,1729829442103,-500.0,0.00013698,2]
[340791624,1729829442112,-500.0,0.00013698,2]
[340791625,1729829442122,-500.0,0.00013698,2]
[340791626,1729829442131,-500.03,0.00013698,2]
[340791627,1729829442141,-500.0,0.00013698,2]
[340791628,1729829442150,-151.0,0.00013698,2]
[340791629,1729829442160,-500.0,0.00013698,2]
[340791630,1729829442169,-1474.12,0.00013698,2]
[340791631,1729829442179,-500.0,0.00013698,2]
[340791632,1729829442188,-812.7,0.00013698,2]
[340791633,1729829442199,-1523.45,0.00013698,2]
[340791635,1729829442207,-806.56,0.00013698,2]
[340791637,1729829442217,-500.0,0.00013698,2]
[340791639,1729829442226,-2451.96,0.00013698,2]
[340791641,1729829442236,-151.0,0.00013698,2]
[340791642,1729829442246,-2996.52,0.00013698,2]
[340791643,1729829442256,-714.15,0.00013698,2]
[340791644,1729829442265,-184.559786,0.00013698,2]
[340791646,1729829442274,-151.0,0.00013698,2]
[340791647,1729829442284,-196.49455876,0.00013698,2]
[340791648,1729829442293,-500.0,0.00013698,2]
[340791649,1729829442303,-184.559786,0.00013698,2]
[340791650,1729829442312,-500.0,0.00013698,2]
[340791651,1729829442322,-405.55871076,0.00013698,2]
[340791652,1729829442332,-2787.53,0.00013698,2]
[340791653,1729829442343,-151.0,0.00013698,2]
[340791654,1729829442352,-500.0,0.00013698,2]
[340791655,1729829442361,-1387.12,0.00013698,2]
[340791656,1729829442370,-1159.86,0.00013698,2]
[340791657,1729829442379,-500.0,0.00013698,2]
[340791658,1729829442389,-671.55,0.00013698,2]
[340791659,1729829442398,-151.0,0.00013698,2]
[340791660,1729829442407,-500.0,0.00013698,2]
[340791661,1729829442416,-151.0,0.00013698,2]
[340791662,1729829442425,-500.0,0.00013698,2]
[340791663,1729829442435,-674.08,0.00013698,2]
[340791664,1729829442445,-683.45,0.00013698,2]
[340791665,1729829442455,-500.0,0.00013698,2]
[340791666,1729829442464,-897.94,0.00013698,2]
[340791667,1729829442473,-667.79,0.00013698,2]
[340791668,1729829442483,-151.0,0.00013698,2]
[340791669,1729829442492,-500.0,0.00013698,2]
[340791670,1729829442502,-500.0,0.00013698,2]
[340791671,1729829442510,-151.0,0.00013698,2]
[340791672,1729829442520,-1369.68,0.00013698,2]
[340791673,1729829442529,-500.0,0.00013698,2]
[340791674,1729829442538,-500.0,0.00013698,2]
[340791676,1729829442548,-772.86,0.00013698,2]
[340791678,1729829442557,-500.0,0.00013698,2]
[340791680,1729829442567,-852.14,0.00013698,2]
[340791682,1729829442576,-596.39323174,0.00013698,2]
[340791684,1729829442585,-722.04,0.00013698,2]
[340791686,1729829442594,-895.97,0.00013698,2]
[340791688,1729829442604,-1111.96,0.00013698,2]
[340791690,1729829442614,-492.79574228,0.00013698,2]
[340791692,1729829442623,-500.0,0.00013698,2]
[340791694,1729829442633,-211.13765993,0.00013698,2]
[340791696,1729829442642,-500.0,0.00013698,2]
[340791698,1729829442652,-178.48730059,0.00013698,2]
[340791700,1729829442662,-500.0,0.00013698,2]
[340791702,1729829442672,-500.0,0.00013698,2]
[340791704,1729829442681,-500.0,0.00013698,2]
[340791706,1729829442691,-500.0,0.00013698,2]
[340791708,1729829442700,-500.0,0.00013698,2]
[340791710,1729829442710,-500.0,0.00013698,2]
[340791711,1729829442719,-500.0,0.00013698,2]
[340791712,1729829442728,-500.0,0.00013698,2]
[340791713,1729829442737,-500.0,0.00013698,2]
[340791714,1729829442747,-500.0,0.00013698,2]
[340791715,1729829442756,-500.0,0.00013698,2]
[340791716,1729829442765,-500.0,0.00013698,2]
[340791717,1729829442775,-340.72114217,0.00013698,2]
[340791718,1729829442784,-500.0,0.00013698,2]
[340791719,1729829442793,-500.0,0.00013698,2]
[340791720,1729829442803,-500.0,0.00013698,2]
[340791721,1729829442812,-2092.820839,0.00013698,2]
[340791722,1729829442821,-1570.24,0.00013698,2]
[340791723,1729829442830,-500.0,0.00013698,2]
[340791725,1729829442840,-151.0,0.00013698,2]
[340791727,1729829442849,-600.3559158,0.00013698,2]
[340791729,1729829442859,-732.74,0.00013698,2]
[340791731,1729829442869,-151.0,0.00013698,2]
[340791733,1729829442878,-2092.820839,0.00013698,2]
[340791735,1729829442888,-500.0,0.00013698,2]
[340791737,1729829442897,-612.119661,0.00013698,2]
[340791739,1729829442907,-500.0,0.00013698,2]
[340791741,1729829442916,-979.4,0.00013698,2]
[340791742,1729829442926,-612.119661,0.00013698,2]
[340791744,1729829442935,-152.896704,0.00013698,2]
[340791746,1729829442945,-901.39,0.00013698,2]
[340791748,1729829442954,-1064.26,0.00013698,2]
[340791750,1729829442963,-151.0,0.00013698,2]
[340791752,1729829442972,-910.73,0.00013698,2]
[340791754,1729829442982,-500.0,0.00013698,2]
[340791755,1729829442991,-728.15819495,0.00013698,2]
[340791757,1729829443000,-443.69700023,0.00013698,2]
[340791759,1729829443010,-500.0,0.00013698,2]
[340791761,1729829443019,-728.15819495,0.00013698,2]
[340791763,1729829443028,-490.08403502,0.00013698,2]
[340791765,1729829443038,-728.15819495,0.00013698,2]
[340791766,1729829443047,-728.15819495,0.00013698,2]
[340791768,1729829443056,-728.15819495,0.00013698,2]
[340791770,1729829443066,-728.15819495,0.00013698,2]
[340791772,1729829443075,-728.15819495,0.00013698,2]
[340791774,1729829443085,-728.15819495,0.00013698,2]
[340791776,1729829443094,-728.15819495,0.00013698,2]
[340791778,1729829443103,-728.15819495,0.00013698,2]
[340791780,1729829443113,-728.15819495,0.00013698,2]
[340791781,1729829443122,-728.15819495,0.00013698,2]
[340791783,1729829443131,-728.15819495,0.00013698,2]
[340791785,1729829443141,-728.15819495,0.00013698,2]
[340791787,1729829443151,-728.15819495,0.00013698,2]
[340791789,1729829443160,-728.15819495,0.00013698,2]
[340791791,1729829443170,-728.15819495,0.00013698,2]
[340791793,1729829443179,-728.15819495,0.00013698,2]
[340791794,1729829443188,-728.15819495,0.00013698,2]
[340791796,1729829443197,-728.15819495,0.00013698,2]
[340791798,1729829443207,-728.15819495,0.00013698,2]
[340791800,1729829443217,-531.42,0.00013698,2]
[340791802,1729829443229,-601.90288121,0.00013698,2]
[340791804,1729829443238,-500.0,0.00013698,2]
[340791806,1729829443247,-591.41041058,0.00013698,2]
[340791808,1729829443256,-151.0,0.00013698,2]
[340791810,1729829443265,-1415.03,0.00013698,2]
[340791812,1729829443275,-599.50571842,0.00013698,2]
[340791814,1729829443284,-290.27726149,0.00013698,2]
[340791816,1729829443294,-1178.4,0.00013698,2]
[340791818,1729829443303,-500.0,0.00013698,2]
[340791820,1729829443313,-759.31,0.00013698,2]
[340791822,1729829443322,-921.36,0.00013698,2]
[340791824,1729829443332,-500.0,0.00013698,2]
[340791826,1729829443342,-151.0,0.00013698,2]
[340791828,1729829443352,-500.0,0.00013698,2]
[340791830,1729829443362,-896.3,0.00013698,2]
[340791832,1729829443371,-500.0,0.00013698,2]
[340791834,1729829443381,-151.0,0.00013698,2]
[340791836,1729829443390,-864.5,0.00013698,2]
[340791838,1729829443400,-502.4515437,0.00013698,2]
[340791840,1729829443410,-151.0,0.00013698,2]
[340791842,1729829443420,-500.0,0.00013698,2]
[340791844,1729829443429,-863.86,0.00013698,2]
[340791846,1729829443438,-230.276516,0.00013698,2]
[340791848,1729829443447,-303.323344,0.00013698,2]
[340791850,1729829443457,-500.0,0.00013698,2]
[340791852,1729829443466,-500.0,0.00013698,2]
[340791854,1729829443475,-303.323344,0.00013698,2]
[340791856,1729829443485,-151.0,0.00013698,2]
[340791858,1729829443495,-500.0,0.00013698,2]
[340791860,1729829443504,-500.0,0.00013698,2]
[340791862,1729829443514,-2034.9,0.00013698,2]
[340791864,1729829443523,-500.0,0.00013698,2]
[340791866,1729829443533,-571.34,0.00013698,2]
[340791868,1729829443542,-1409.19,0.00013698,2]
[340791870,1729829443552,-669.897057,0.00013698,2]
[340791872,1729829443561,-783.22,0.00013698,2]
[340791874,1729829443571,-500.0,0.00013698,2]
[340791876,1729829443580,-1224.51,0.00013698,2]
[340791878,1729829443591,-2324.22,0.00013698,2]
[340791880,1729829443600,-669.897057,0.00013698,2]
[340791882,1729829443610,-500.0,0.00013698,2]
[340791884,1729829443620,-597.61,0.00013698,2]
[340791886,1729829443630,-712.82,0.00013698,2]
[340791888,1729829443639,-1050.31,0.00013698,2]
[340791890,1729829443648,-950.1,0.00013698,2]
[340791892,1729829443658,-1268.81514,0.00013698,2]
[340791894,1729829443667,-1412.79,0.00013698,2]
[340791896,1729829443677,-1028.25,0.00013698,2]
[340791898,1729829443687,-652.95,0.00013698,2]
[340791900,1729829443698,-1268.81514,0.00013698,2]
[340791902,1729829443708,-2203.78,0.00013698,2]
[340791904,1729829443718,-151.0,0.00013698,2]
[340791906,1729829443727,-151.0,0.00013698,2]
[340791908,1729829443736,-777.63,0.00013698,2]
[340791910,1729829443746,-1268.81514,0.00013698,2]
[340791912,1729829443755,-1369.15,0.00013698,2]
[340791914,1729829443765,-1268.81514,0.00013698,2]
[340791916,1729829443774,-719.64,0.00013698,2]
[340791918,1729829443783,-151.0,0.00013698,2]
[340791920,1729829443793,-151.0,0.00013698,2]
[340791922,1729829443802,-25374.18,0.00013698,2]
[340791924,1729829443811,-954.52,0.00013698,2]
[340791926,1729829443821,-151.0,0.00013698,2]
[340791928,1729829443831,-926.81,0.00013698,2]
[340791930,1729829443841,-151.0,0.00013698,2]
[340791932,1729829443851,-586.75512603,0.00013698,2]
[340791934,1729829443860,-1234.24,0.00013698,2]
[340791936,1729829443869,-500.0,0.00013698,2]
[340791938,1729829443879,-162.72405479,0.00013698,2]
[340791940,1729829443888,-372.118729,0.00013698,2]
[340791942,1729829443898,-372.118729,0.00013698,2]
[340791945,1729829443908,-151.343935,0.00013698,2]
[340791947,1729829443918,-372.118729,0.00013698,2]
[340791949,1729829443928,-372.118729,0.00013698,2]
[340791951,1729829443938,-761.83,0.00013698,2]
[340791952,1729829443948,-500.0,0.00013698,2]
[340791954,1729829443957,-500.0,0.00013698,2]
[340791955,1729829443967,-936.38,0.00013698,2]
[340791957,1729829443977,-500.0,0.00013698,2]
[340791959,1729829443987,-4422.86,0.00013698,2]
[340791961,1729829443997,-543.63849088,0.00013698,2]
[340791963,1729829444006,-1351.61,0.00013698,2]
[340791965,1729829444015,-1079.5,0.00013698,2]
[340791966,1729829444026,-500.0,0.00013698,2]
[340791968,1729829444035,-500.0,0.00013698,2]
[340791970,1729829444045,-1374.11,0.00013698,2]
[340791972,1729829444054,-433.359592,0.00013698,2]
[340791974,1729829444063,-433.359592,0.00013698,2]
[340791976,1729829444073,-500.0,0.00013698,2]
[340791978,1729829444082,-1337.15,0.00013698,2]
[340791980,1729829444092,-4344.59,0.00013698,2]
[340791981,1729829444103,-433.359592,0.00013698,2]
[340791982,1729829444112,-433.359592,0.00013698,2]
[340791983,1729829444122,-500.0,0.00013698,2]
[340791984,1729829444131,-151.0,0.00013698,2]
[340791985,1729829444140,-151.0,0.00013698,2]
[340791986,1729829444150,-500.0,0.00013698,2]
[340791987,1729829444159,-151.0,0.00013698,2]
[340791988,1729829444169,-500.0,0.00013698,2]
[340791989,1729829444179,-151.0,0.00013698,2]
[340791990,1729829444188,-1078.67,0.00013698,2]
[340791991,1729829444198,-1083.47,0.00013698,2]
[340791992,1729829444208,-839.93,0.00013698,2]
[340791993,1729829444218,-151.0,0.00013698,2]
[340791994,1729829444227,-151.0,0.00013698,2]
[340791995,1729829444237,-211.15810126,0.00013698,2]
[340791996,1729829444248,-151.0,0.00013698,2]
[340791997,1729829444258,-151.0,0.00013698,2]
[340791998,1729829444268,-1226.59,0.00013698,2]
[340791999,1729829444278,-151.0,0.00013698,2]
[340792000,1729829444288,-151.0,0.00013698,2]
[340792001,1729829444298,-500.0,0.00013698,2]
[340792002,1729829444308,-500.0,0.00013698,2]
[340792003,1729829444318,-500.0,0.00013698,2]
[340792004,1729829444328,-540.805501,0.00013698,2]
[340792005,1729829444339,-540.805501,0.00013698,2]
[340792006,1729829444348,-500.0,0.00013698,2]
[340792007,1729829444358,-1768.57,0.00013698,2]
[340792008,1729829444367,-540.805501,0.00013698,2]
[340792009,1729829444376,-623.5,0.00013698,2]
[340792010,1729829444386,-540.805501,0.00013698,2]
[340792011,1729829444395,-500.0,0.00013698,2]
[340792012,1729829444404,-1093.91,0.00013698,2]
[340792013,1729829444414,-610.05072762,0.00013698,2]
[340792014,1729829444424,-620.99,0.00013698,2]
[340792015,1729829444434,-151.0,0.00013698,2]
[340792016,1729829444445,-151.0,0.00013698,2]
[340792017,1729829444455,-1741.37,0.00013698,2]
[340792018,1729829444464,-151.551693,0.00013698,2]
[340792019,1729829444475,-500.0,0.00013698,2]
[340792020,1729829444486,-608.2,0.00013698,2]